[Event "45th FIDE Olympiad 2024"]
[Site "Budapest"]
[Date "2024.09.14"]
[Round "4.55"]
[White "Shaw, Clifford"]
[Black "Napoleao, Lourenco"]
[Result "0-1"]
[ECO "B22"]
[WhiteElo "1744"]
[BlackElo "1913"]
[PlyCount "102"]
[EventDate "2024.09.05"]
[EventType "team-tourn"]
[EventCountry "HUN"]
[WhiteTeam "Cayman Islands"]
[BlackTeam "Mozambique"]
[WhiteTeamCountry "CAY"]
[BlackTeamCountry "MOZ"]
[TimeControl "40/5400+30:1800+30"]

1. e4 c5 2. d4 cxd4 3. c3 Nf6 4. e5 Nd5 5. Qxd4 e6 6. Nf3 Nc6 7. Qe4 f5 8. Qe2 Qc7 9. Na3 Bxa3 10. bxa3 Nxc3 11. Qc4 Ne4 12. Bd3 Qa5+ 13. Ke2 Nxe5 14. Nxe5 Qxe5 15. Be3 d5 16. Qb5+ Bd7 17. Qb4 a5 18. Qd4 Qxd4 19. Bxd4 Nf6 20. Rab1 Bc6 21. g3 O-O 22. Kd2 Ne4+ 23. Ke3 Rae8 24. f4 Nf6 25. Kd2 Nd7 26. Rhe1 g6 27. Re2 Re7 28. Kc3 Rfe8 29. Rbe1 Kf7 30. Kd2 Nf6 31. Bc5 Rd7 32. Bd4 Ne4+ 33. Ke3 Nf6 34. Kd2 a4 35. Rc1 Ra8 36. Rce1 Ne4+ 37. Ke3 Ra5 38. Bb6 d4+ 39. Bxd4 Rad5 40. Bxe4 Rxd4 41. Bxc6 bxc6 42. Kf3 Rd3+ 43. Re3 Kf6 44. Rc1 R7d6 45. Rc4 R3d4 46. Rc5 Rd2 47. Rc4 Rxh2 48. Rxa4 h6 49. Ra8 g5 50. Rb3 g4+ 51. Ke3 Rdd2 {0-} 0-1

[Event "45th FIDE Olympiad 2024"]
[Site "Budapest"]
[Date "2024.09.14"]
[Round "4.56"]
[White "Zlatkov, Anton"]
[Black "L'ami, Erwin"]
[Result "1/2-1/2"]
[ECO "A11"]
[WhiteElo "2346"]
[BlackElo "2628"]
[Annotator "TA"]
[PlyCount "104"]
[EventDate "2024.09.05"]
[EventType "team-tourn"]
[EventCountry "HUN"]
[SourceTitle "playchess.com"]
[Source "ChessBase"]
[SourceQuality "1"]
[WhiteTeam "North Macedonia"]
[BlackTeam "Netherlands"]
[BlackTeamCountry "NED"]
[TimeControl "40/5400+30:1800+30"]

{[%evp 9,104,0,5,18,55,21,23,16,30,18,10,11,16,12,34,30,27,10,0,14,19,-47,-60,-59,-63,-59,-60,-65,-40,-55,-47,-48,-35,-67,-25,-64,-69,-71,-74,-59,-65,-66,-7,-11,-5,-10,0,0,0,0,0,0,0,-68,-76,-93,-69,-77,-12,-154,-149,-146,-158,-147,-135,-130,-6,-9,0,0,0,0,7,0,5,0,0,0,0,0,0,0,0,0,0,0,0,0,0,0,0,0,0,0,0,0,0]} 1. Nf3 {[%emt 0:00:05]} d5 {[%emt 0:00:21]} 2. g3 {[%emt 0:00:11]} Nf6 {[%emt 0:00:25]} 3. Bg2 {[%emt 0:00:14]} c6 {[%emt 0:00:52]} 4. c4 {[%emt 0:00:31]} dxc4 {[%emt 0:04:37]} 5. O-O {[%emt 0:00:12]} e6 {[%emt 0:00:52]} 6. a4 {[%emt 0:06:05]} a5 {[%emt 0:06:22]} 7. Qc2 {[%emt 0:08:20]} Na6 {[%emt 0:01:13]} 8. Qxc4 {[%emt 0:00:37] White has an edge.} Nb4 {[%emt 0:01:05][%cal Oe6e5]} 9. Nc3 {[%emt 0:05:15]} Be7 {[%emt 0:01:17]} 10. d4 {[%emt 0:08:24]} O-O {[%emt 0:05:23]} 11. Qb3 {[%emt 0:04:01]} Nd7 {[%emt 0:16:32]} 12. Rd1 {[%emt 0:02:36]} Qb6 {[%emt 0:04:14][%cal Oe6e5]} 13. Bg5 {[%emt 0:10:01]} Bxg5 {[%emt 0:02:15]} 14. Nxg5 {[%emt 0:00:06]} e5 {[%emt 0:02:03]} 15. d5 {[%emt 0:16:54]} (15. dxe5 $11 Nxe5 16. Nce4) 15... h6 $15 {[%emt 0:05:21]} 16. Nge4 {[%emt 0:07:09]} Nxd5 {[%emt 0:01:36]} 17. Qc4 {[%emt 0:02:55]} N7f6 {[%emt 0:02:55]} (17... Qxb2 18. Nxd5 cxd5 19. Qxd5 $11) 18. Qc5 {[%emt 0:05:39]} Nxe4 {[%emt 0:06:04]} 19. Qxb6 {[%emt 0:01:49]} Nxb6 {[%emt 0:00:13]} 20. Nxe4 {[%emt 0:00:04]} Nd5 {[%emt 0:04:41][%cal Bb6d5,Bd5c7,Bc7e6][%mdl 32]} 21. Nc5 {[%emt 0:01:19]} Nc7 {[%emt 0:01:05]} 22. Rac1 {[%emt 0:05:13]} Ne6 {[%emt 0:07:01]} 23. Nd7 {[%emt 0:02:52]} Bxd7 {[%emt 0:00:34]} (23... Nd4 24. Nxf8 Kxf8 (24... Nxe2+ $2 25. Kf1 $18) 25. Rc5 $16) 24. Rxd7 {[%emt 0:00:03]} Rab8 {[%emt 0:02:20]} 25. Bh3 $1 {[%emt 0:01:07]} Rfe8 {[%emt 0:04:29]} ({Better is} 25... Ng5 $1 $15 26. Bf5 g6) 26. Bxe6 $11 {[%emt 0:02:23]} Rxe6 {[%emt 0:00:07][%mdl 4096] Endgame. KRR-KRR} 27. Rc7 {[%emt 0:00:50]} Kf8 {[%emt 0:10:38]} 28. Rc5 {[%emt 0:01:53]} f6 {[%emt 0:00:50]} 29. Rxa5 {[%emt 0:01:19]} Re7 {[%emt 0:00:07]} 30. Rxe7 {[%emt 0:00:03]} Kxe7 {[%emt 0:00:03] KR-KR} 31. Ra7 {[%emt 0:05:48]} (31. b4 $11) 31... Kd6 $15 {[%emt 0:00:38]} 32. Kg2 {[%emt 0:01:11]} Kc5 {[%emt 0:00:51] aiming for ...Kb6.} 33. a5 {[%emt 0:00:04]} Kc4 {[%emt 0:03:33] Hoping for ...Kb3.} 34. Kf3 {[%emt 0:00:34]} (34. f4 $1 $11) 34... Kb3 $17 {[%emt 0:02:41]} 35. a6 {[%emt 0:00:08]} bxa6 {[%emt 0:00:07]} (35... Kxb2 $2 36. Rxb7+ Rxb7 37. axb7 $18) 36. Rxa6 {[%emt 0:00:03] [#]} c5 {[%emt 0:00:28]} (36... Kxb2 37. Rxc6 Rb7 38. e3 $16) 37. Ke4 {[%emt 0:01:36] [#]} c4 {[%emt 0:01:17]} (37... Kxb2 $6 38. Kd5 $11) ({Black should try} 37... Kc4 $1 $17 38. Ra7 Rxb2) 38. Rc6 $11 {[%emt 0:00:26] The position is equal.} Rd8 {[%emt 0:02:32][%cal Od8d2]} (38... Kxb2 $2 39. Rxc4 Rd8 40. Rc7 $18) (38... Rb4 $5 39. Kd5 $8 h5 $11 (39... Kxb2 40. Rxc4 Rxc4 41. Kxc4 $16)) 39. Rb6+ {[%emt 0:00:04]} Kc2 {[%emt 0:01:29]} 40. Rb4 {[%emt 0:00:54]} Rc8 {[%emt 0:00:41]} (40... Rd4+ 41. Kf3 $16) 41. Rb7 {[%emt 0:31:22]} g6 {[%emt 0:07:00]} 42. Kd5 {[%emt 0:00:00]} Kd2 {[%emt 0:03:56]} 43. Rb6 {[%emt 0:00:00]} Rf8 {[%emt 0:01:58]} 44. e4 {[%emt 0:00:00]} Kd3 {[%emt 0:05:28]} 45. f4 {[%emt 0:00:00]} Rd8+ {[%emt 0:02:44]} 46. Kc5 {[%emt 0:00:00]} Rc8+ {[%emt 0:02:21]} 47. Kd5 {[%emt 0:00:00]} Rd8+ {[%emt 0:02:50]} 48. Kc5 {[%emt 0:00:00]} exf4 {[%emt 0:01:29]} 49. Rxf6 {[%emt 0:00:00] And now e5 would win.} Rc8+ {[%emt 0:00:44]} (49... Kxe4 50. Rxf4+ Kd3 51. Rf3+ Ke4 52. Rf4+ Kd3 53. Rf6) 50. Kd5 {[%emt 0:00:00] Threatens to win with e5.} Rd8+ {[%emt 0:02:00]} 51. Kc5 {[%emt 0:00:00]} Rc8+ {[%emt 0:04:12]} (51... Kxe4 52. Rxf4+ Kd3 53. Rf3+ Ke4 54. Rf4+ Kd3 55. Rf6) 52. Kd5 {[%emt 0:00:00] Black must now prevent e5.} Rd8+ {[%emt 0:01:01] Weighted Error Value: White=0.14 (very precise) /Black=0.10 (very precise) .  Mistake:       	White=3     	Black=2      Inaccurate:     	White=3     	Black=2      OK:         	White=23    	Black=16     Best:        	White=2     	Black=6      Strong:       	White=1     	---} 1/2-1/2

[Event "45th FIDE Olympiad 2024"]
[Site "Budapest"]
[Date "2024.09.14"]
[Round "4.56"]
[White "Joao, Farisse"]
[Black "Tracey, Shaun M"]
[Result "1/2-1/2"]
[ECO "A90"]
[WhiteElo "1851"]
[BlackElo "1684"]
[PlyCount "84"]
[EventDate "2024.09.05"]
[EventType "team-tourn"]
[EventCountry "HUN"]
[WhiteTeam "Mozambique"]
[BlackTeam "Cayman Islands"]
[WhiteTeamCountry "MOZ"]
[BlackTeamCountry "CAY"]
[TimeControl "40/5400+30:1800+30"]

1. c4 e6 2. d4 f5 3. Nc3 Nf6 4. g3 d5 5. Bg2 c6 6. Nf3 Bd6 7. Qc2 O-O 8. c5 Bc7 9. b4 Ne4 10. h4 Nd7 11. Bf4 Ndf6 12. Ne5 a5 13. O-O axb4 14. Nxe4 dxe4 15. Rfd1 Nd5 16. Bg5 Qe8 17. f3 h6 18. Bc1 Bxe5 19. dxe5 exf3 20. exf3 Qe7 21. Rd4 Ra5 22. Rc4 Bd7 23. Bd2 Rfa8 24. Kh2 Rb5 25. Rb1 Raa5 26. f4 Ra7 27. Rb2 Be8 28. Qc1 Ra4 29. Qd1 Rba5 30. Bxd5 cxd5 31. Rcxb4 Bc6 32. Rxa4 Rxa4 33. Bb4 Qd7 34. Qd4 Qe8 35. a3 Qh5 36. Rf2 Kf7 37. Kg2 Qg4 38. Rd2 Ra8 39. Kf2 Qh3 40. Kf3 Qf1+ {Rg2 Qc1 g4 Qc4 Rd2 Qf1+ Kg3 Qe1+} 41. Qf2 Qxf2+ 42. Rxf2 {fxg4 Kxg4} d4+ {f5 exf5+ Kxf5 g6+ Kg4+ Ke6 Rf6+ Kxe5 Rxg6 Rh8 h5 Be4 Rg7 Rh7 Rg8 Rf7 Bd2 Bf3+ Kh4 Rf5 Kg3 Bxh5 Bxh6 Kd5 Rg7 Bf7 Rg5 Rxg5+ Bxg5 Kxc5 Kf2 Kc4 Ke1 Kc3 Bd2+ Kc2 Bb4 Bg6} 1/2-1/2

[Event "45th FIDE Olympiad 2024"]
[Site "Budapest"]
[Date "2024.09.14"]
[Round "4.57"]
[White "Keymer, Vincent"]
[Black "Amartuvshin, Ganzorig"]
[Result "1-0"]
[ECO "D05"]
[WhiteElo "2730"]
[BlackElo "2402"]
[Annotator "TA"]
[PlyCount "61"]
[EventDate "2024.09.05"]
[EventType "team-tourn"]
[EventCountry "HUN"]
[SourceTitle "playchess.com"]
[Source "ChessBase"]
[SourceQuality "1"]
[WhiteTeam "Germany"]
[BlackTeam "Mongolia"]
[WhiteTeamCountry "GER"]
[BlackTeamCountry "MGL"]
[TimeControl "40/5400+30:1800+30"]

{[%evp 11,61,3,20,20,22,29,34,25,26,25,26,30,27,33,15,20,29,17,16,20,13,-47,0,0,44,59,65,85,98,93,124,112,105,88,104,82,171,163,346,356,354,316,437,420,1200,1140,1131,1092,29982,6843,29994,1571]} 1. Nf3 {[%emt 0:00:04]} Nf6 {[%emt 0:00:07]} 2. b3 {[%emt 0:01:02]} d5 {[%emt 0:02:07]} 3. Bb2 {[%emt 0:00:19]} e6 {[%emt 0:00:07]} 4. e3 {[%emt 0:02:34]} c5 {[%emt 0:00:22]} 5. d4 {[%emt 0:04:25]} Nc6 {[%emt 0:01:08]} 6. Nbd2 {[%emt 0:00:58]} Be7 {[%emt 0:03:31]} 7. dxc5 {[%emt 0:05:00]} Bxc5 {[%emt 0:01:01]} 8. a3 {[%emt 0:02:29]} O-O {[%emt 0:00:40]} 9. b4 {[%emt 0:03:19] White is slightly better.} Be7 {[%emt 0:00:38]} 10. Bd3 {[%emt 0:01:20]} a6 {[%emt 0:01:56]} 11. Qe2 {[%emt 0:17:30]} b5 {[%emt 0:22:43]} 12. O-O {[%emt 0:03:22]} Nd7 {[%emt 0:02:56]} 13. e4 {[%emt 0:01:59]} Nb6 {[%emt 0:00:19]} 14. Rad1 {[%emt 0:15:14]} Bd7 {[%emt 0:11:12]} 15. Rfe1 {[%emt 0:07:24]} Re8 {[%emt 0:05:06]} 16. e5 {[%emt 0:01:49]} ({Better is} 16. Nb3 $11) 16... Na4 {[%emt 0:05:00]} (16... a5 $1 $15 17. c3 axb4 18. cxb4 Na4) 17. Ba1 $11 {[%emt 0:00:21]} Bf8 {[%emt 0:11:22]} 18. h4 {[%emt 0:03:51][%cal Od3h7,Bh2h4,Bh4h5][%mdl 32] Hoping for Bxh7+!} g6 {[%emt 0:02:41] [#]} 19. h5 $1 {[%emt 0:03:20]} Bg7 {[%emt 0:00:36]} (19... a5 20. Bxb5) 20. Qe3 {[%emt 0:00:56]} a5 {[%emt 0:02:21]} 21. Qf4 {[%emt 0:02:50]} axb4 {[%emt 0:00:22]} 22. axb4 {[%emt 0:00:06]} Qe7 {[%emt 0:01:14]} 23. Rb1 {[%emt 0:02:17]} Qf8 {[%emt 0:01:11] [#]} (23... Red8 $16 24. Bxb5 Rdb8) 24. Nf1 $1 $18 {[%emt 0:01:27]} Ne7 $2 {[%emt 0:01:03]} (24... d4 {was worth a try.} 25. Bxb5 (25. Nxd4 Nxb4 26. Be4 Rac8 $16) (25. Bxd4 Nxd4 26. Qxd4 Bc6 $16) 25... Reb8) 25. N1h2 {[%emt 0:01:00]} Bh6 {[%emt 0:00:55]} 26. Ng5 {[%emt 0:02:01]} Nf5 {[%emt 0:07:18]} 27. Ng4 {[%emt 0:00:20]} Bg7 {[%emt 0:01:40]} (27... Qg7 $142 28. Nf6+ Kh8 29. Nxd7 d4) 28. hxg6 {[%emt 0:00:14]} hxg6 {[%emt 0:01:44]} 29. Bxf5 {[%emt 0:01:11][%cal Of4h2] Qh2! would now be deadly.} exf5 {[%emt 0:00:11] [#]} 30. Qh2 $1 {[%emt 0:00:06][%csl Gg5][%cal Rh2h7]} Qe7 {[%emt 0:00:15]} (30... Qxb4 31. e6) 31. Nh6+ {[%emt 0:00:59] Weighted Error Value: White=0.09 (flawless) /Black=0.62.  Mistake:       	White=1     	Black=4      Inaccurate:     	---       	Black=3      OK:         	White=10    	Black=9      Best:        	White=2     	---        Strong:       	White=1     	---} (31. Nf6+ $142 Bxf6 32. Qh7+ Kf8 33. exf6 Qxf6 34. Bxf6 Rxe1+ 35. Rxe1 f4 36. Qxf7#) 1-0

[Event "45th FIDE Olympiad 2024"]
[Site "Budapest"]
[Date "2024.09.14"]
[Round "4.58"]
[White "Baasansuren, Erdene"]
[Black "Kollars, Dmitrij"]
[Result "0-1"]
[ECO "A17"]
[WhiteElo "2368"]
[BlackElo "2659"]
[Annotator "TA"]
[PlyCount "100"]
[EventDate "2024.09.05"]
[EventType "team-tourn"]
[EventCountry "HUN"]
[SourceTitle "playchess.com"]
[Source "ChessBase"]
[SourceQuality "1"]
[WhiteTeam "Mongolia"]
[BlackTeam "Germany"]
[WhiteTeamCountry "MGL"]
[BlackTeamCountry "GER"]
[TimeControl "40/5400+30:1800+30"]

{[%evp 20,100,9,0,0,-17,-12,-27,0,0,0,0,0,0,0,0,0,0,0,0,0,-47,-30,-47,-40,-310,-283,-356,-214,-211,-168,-209,-204,-218,-181,-193,-216,-216,-213,-205,-170,-163,-144,-191,-204,-189,-195,-213,-212,-476,-253,-291,-294,-309,-294,-309,-314,-308,-308,-301,-309,-300,-300,-370,-415,-443,-433,-639,-642,-717,-619,-712,-676,-903,-892,-875,-622,-5683,-2045,-1215,-1015,-946,-929]} 1. Nf3 {[%emt 0:00:03]} d5 {[%emt 0:00:15]} 2. e3 {[%emt 0:00:05]} Nf6 {[%emt 0:00:23]} 3. c4 {[%emt 0:00:05]} e6 {[%emt 0:00:17]} 4. Nc3 {[%emt 0:00:12]} Bd6 {[%emt 0:00:34]} 5. d4 {[%emt 0:02:26]} b6 {[%emt 0:01:37]} 6. Be2 {[%emt 0:01:13] A17: English Opening: 1...Nf6 with ...Bb4.} O-O {[%emt 0:01:10]} 7. O-O {[%emt 0:00:05]} Bb7 {[%emt 0:00:52]} 8. b3 {[%emt 0:00:06]} Nbd7 {[%emt 0:00:13]} 9. Bb2 {[%emt 0:00:26]} Re8 {[%emt 0:02:52]} 10. Qc2 {[%emt 0:08:51]} a6 {[%emt 0:01:17]} 11. a4 {[%emt 0:04:54]} c5 {[%emt 0:06:37]} 12. Rfd1 $146 {[%emt 0:14:12]} ({Predecessor:} 12. cxd5 exd5 13. Rfc1 Qe7 14. Qd1 Ne4 15. a5 b5 16. dxc5 Ndxc5 17. Nxe4 dxe4 18. Nd4 {0-1 Kostenko,P (2371)-Frolyanov,D (2495) Cheliabinsk Lozovatsky Memorial-A 2023 (9)}) 12... Rc8 {[%emt 0:11:28]} 13. h3 {[%emt 0:26:17]} Bb8 {[%emt 0:04:01]} 14. cxd5 {[%emt 0:04:16]} exd5 {[%emt 0:01:52]} 15. Rac1 {[%emt 0:06:41]} Qe7 {[%emt 0:03:34]} 16. Ba3 {[%emt 0:03:29]} Qe6 {[%emt 0:10:12]} 17. Qd2 {[%emt 0:03:12]} h6 {[%emt 0:09:06]} 18. a5 {[%emt 0:04:35]} Ne4 {[%emt 0:02:25]} 19. Nxe4 {[%emt 0:05:05]} dxe4 {[%emt 0:00:05]} 20. Nh2 {[%emt 0:02:00]} (20. Ne1 $11) 20... Qxb3 $15 {[%emt 0:09:18]} 21. Bg4 {[%emt 0:00:55]} Rcd8 {[%emt 0:02:01]} (21... Qxa3 $6 22. Bxd7 c4 23. Bxc8 (23. axb6 $2 Qd6 $19) (23. Bxe8 b5 $15) 23... Rxc8 24. axb6 $16) 22. dxc5 $2 {[%emt 0:05:00][%mdl 8192]} (22. Rc3 $15 Qb5 23. axb6 (23. dxc5 Be5 $15) 23... cxd4 (23... Nxb6 24. Rxc5 Qb3 25. Qc3 $16) (23... Qxb6 24. Bxd7 Qd6 25. Nf1 $17) (23... c4 24. Qc2 $14) 24. exd4 (24. Qxd4 $2 Be5 $19)) 22... Qxa3 $19 {[%emt 0:05:20]} 23. c6 {[%emt 0:03:24]} Nf8 {[%emt 0:01:28]} 24. Qc2 {[%emt 0:01:30]} Rxd1+ {[%emt 0:04:56]} 25. Rxd1 {[%emt 0:01:32]} h5 $1 {[%emt 0:01:55]} 26. Bxh5 {[%emt 0:02:17]} Qxa5 {[%emt 0:04:18]} ({Don't do} 26... Rc8 27. Bxf7+ Kxf7 28. Qc4+ Ke8 29. Qxe4+ Qe7 30. cxb7 $17) 27. Bxf7+ {[%emt 0:00:34]} Kxf7 {[%emt 0:00:01]} 28. Qc4+ {[%emt 0:00:30]} Re6 {[%emt 0:08:22]} 29. cxb7 {[%emt 0:00:02]} Qc5 {[%emt 0:00:33]} 30. Qxa6 {[%emt 0:00:39]} Rd6 {[%emt 0:00:31]} 31. Rb1 {[%emt 0:00:44]} (31. Qa2+ $17 Ne6 32. Rxd6 Qxd6 33. Nf1) 31... Nd7 $19 {[%emt 0:00:42]} 32. Nf1 {[%emt 0:00:36]} Qc2 {[%emt 0:01:37]} 33. Qb5 {[%emt 0:00:20]} Nc5 {[%emt 0:02:58]} 34. Ra1 $2 {[%emt 0:00:40]} (34. g4) 34... Qd3 {[%emt 0:00:39]} ({Weaker is} 34... Nxb7 35. Qh5+ Ke7 36. Ng3 $17) (34... Rf6 $142 35. Kh1 Qxf2 (35... Rxf2 $2 36. Ra8 $19)) 35. Qb4 {[%emt 0:00:32]} Qd5 {[%emt 0:00:51]} 36. Ra8 {[%emt 0:00:30]} Qxb7 {[%emt 0:00:34]} 37. Qc4+ {[%emt 0:00:29]} Kg6 {[%emt 0:01:06]} 38. Ra1 {[%emt 0:00:28]} Qd5 {[%emt 0:00:08]} 39. Qb5 {[%emt 0:00:17]} Qc6 {[%emt 0:01:02]} 40. Qe2 {[%emt 0:00:27]} Rd5 {[%emt 0:01:57]} 41. h4 {[%emt 0:03:56]} Kh7 {[%emt 0:02:08]} 42. f4 {[%emt 0:01:49]} exf3 {[%emt 0:01:27]} 43. Qxf3 {[%emt 0:00:16]} (43. gxf3 $142 Rh5 44. Qc2+ Kh6 45. f4 Rxh4 46. Ng3) 43... Qe6 $19 {[%emt 0:01:30]} 44. Ra8 {[%emt 0:00:49]} Rf5 {[%emt 0:04:30]} 45. Qd1 {[%emt 0:01:18]} Bd6 {[%emt 0:01:11]} 46. Rd8 {[%emt 0:01:57]} Ne4 {[%emt 0:01:33]} 47. Qd3 {[%emt 0:01:00]} Rd5 {[%emt 0:01:30]} 48. Qb3 {[%emt 0:00:50]} Qf6 {[%emt 0:02:15]} (48... Qf5 $142 49. Qa2 Rd1 (49... Bh2+ $2 50. Kxh2 Rxd8 51. Qe2 $19)) 49. Qc2 $19 {[%emt 0:00:34]} Qxd8 {[%emt 0:00:55]} 50. Qxe4+ {[%emt 0:00:05]} Kh8 {[%emt 0:00:03]} 0-1

[Event "45th FIDE Olympiad 2024"]
[Site "Budapest"]
[Date "2024.09.14"]
[Round "4.59"]
[White "Donchenko, Alexander"]
[Black "Amilal, Munkhdalai"]
[Result "1/2-1/2"]
[ECO "B84"]
[WhiteElo "2638"]
[BlackElo "2374"]
[Annotator "TA"]
[PlyCount "153"]
[EventDate "2024.09.05"]
[EventType "team-tourn"]
[EventCountry "HUN"]
[SourceTitle "playchess.com"]
[Source "ChessBase"]
[SourceQuality "1"]
[WhiteTeam "Germany"]
[BlackTeam "Mongolia"]
[WhiteTeamCountry "GER"]
[BlackTeamCountry "MGL"]
[TimeControl "40/5400+30:1800+30"]

{[%evp 83,153,178,1784,1721,643,1652,1587,1434,1483,1664,2429,563,552,299,338,168,330,126,374,339,704,704,704,704,697,0,697,697,697,697,697,697,697,697,697,372,10696,6739,4562,0,0,0,0,0,282,0,0,0,0,0,0,0,0,0,0,0,0,0,0,0,0,0,0,0,0,0,0,0,0,0,0,0]} 1. e4 {[%emt 0:00:04]} c5 {[%emt 0:00:04]} 2. Nf3 {[%emt 0:00:08]} d6 {[%emt 0:00:03]} 3. d4 {[%emt 0:04:06]} cxd4 {[%emt 0:00:06]} 4. Nxd4 {[%emt 0:00:04]} Nf6 {[%emt 0:00:04]} 5. Nc3 {[%emt 0:01:21]} a6 {[%emt 0:00:20]} 6. Be3 {[%emt 0:01:05]} Ng4 {[%emt 0:04:51]} 7. Bc1 {[%emt 0:03:25]} Nf6 {[%emt 0:00:08]} 8. Be2 {[%emt 0:00:22]} e6 {[%emt 0:01:56]} 9. Be3 {[%emt 0:00:19]} Qc7 {[%emt 0:02:10]} 10. f4 {[%emt 0:02:52]} b5 {[%emt 0:24:28]} 11. a3 {[%emt 0:10:29]} Bb7 {[%emt 0:01:01]} 12. Bf3 {[%emt 0:05:44]} Nbd7 {[%emt 0:00:20]} 13. Qe2 {[%emt 0:00:48]} Be7 {[%emt 0:19:56] B84: Sicilian Scheveningen: 6 Be2 a6, lines without early Be3.} 14. g4 {[%emt 0:07:36]} Nb6 {[%emt 0:02:23]} 15. g5 {[%emt 0:15:47]} Nfd7 {[%emt 0:00:02]} 16. Rd1 $146 {[%emt 0:00:41]} ({Predecessor:} 16. Bg4 Nc5 17. Bf2 O-O 18. Rg1 Rfe8 19. Rg3 Bf8 20. O-O-O e5 21. Nf5 exf4 22. Bxc5 Qxc5 {½-½ Meribanov,V (2396)-Ziaziulkina,N (2403) BLR-ch U20 Minsk 2014 (9)}) 16... Nc4 {[%emt 0:01:09]} 17. Bc1 {[%emt 0:00:25]} Nxa3 {[%emt 0:06:29]} 18. Bg4 {[%emt 0:11:15]} g6 {[%emt 0:14:23]} 19. O-O {[%emt 0:09:11]} Nc4 {[%emt 0:05:45]} 20. b3 {[%emt 0:02:51]} Ncb6 {[%emt 0:00:43]} 21. Bb2 {[%emt 0:01:08]} e5 {[%emt 0:00:30]} 22. Nf3 {[%emt 0:03:02]} O-O {[%emt 0:06:29]} 23. Nd5 {[%emt 0:04:04]} Bxd5 {[%emt 0:03:03]} 24. exd5 {[%emt 0:00:04]} f5 {[%emt 0:01:11]} 25. gxf6 {[%emt 0:01:14]} Bxf6 {[%emt 0:00:05]} 26. fxe5 {[%emt 0:03:52]} Nxe5 {[%emt 0:01:40]} 27. Nxe5 {[%emt 0:01:10]} Bxe5 {[%emt 0:00:01]} 28. Bxe5 {[%emt 0:00:12]} dxe5 {[%emt 0:00:54]} 29. Rfe1 {[%emt 0:01:20]} Rfe8 {[%emt 0:03:04]} 30. Qe3 {[%emt 0:06:14]} Qd6 {[%emt 0:00:18]} 31. Be6+ {[%emt 0:00:45]} Kg7 {[%emt 0:00:07]} 32. Qc3 {[%emt 0:00:52]} Nd7 {[%emt 0:01:01]} 33. Bxd7 {[%emt 0:03:07]} Qxd7 {[%emt 0:00:04]} 34. Rxe5 {[%emt 0:00:05]} Qg4+ {[%emt 0:00:05]} 35. Kh1 {[%emt 0:00:04]} Kg8 {[%emt 0:01:09]} 36. Rd4 {[%emt 0:01:10]} Qd7 {[%emt 0:00:53]} 37. Rde4 {[%emt 0:00:21]} Rxe5 {[%emt 0:00:20]} 38. Qxe5 {[%emt 0:00:20]} Rf8 {[%emt 0:01:27]} 39. Qe6+ {[%emt 0:01:48]} Qxe6 {[%emt 0:00:20]} 40. Rxe6 {[%emt 0:00:02]} Rf2 {[%emt 0:00:50]} 41. c4 {[%emt 0:15:41]} bxc4 {[%emt 0:00:06]} 42. bxc4 {[%emt 0:00:03]} (42. Rxa6 $2 cxb3 $19) (42. d6 $142) 42... Rc2 $2 {[%emt 0:00:44] [#]} (42... Kf7) 43. d6 $1 $18 {[%emt 0:03:12]} (43. Rxa6 Rxc4 44. Ra7 Rd4 $11) 43... Kf7 {[%emt 0:00:11]} 44. Re7+ {[%emt 0:00:20]} Kf8 {[%emt 0:09:18]} 45. Re5 {[%emt 0:00:35]} (45. Rxh7 Ke8 $11) 45... Rd2 {[%emt 0:00:04]} 46. c5 {[%emt 0:00:24]} a5 {[%emt 0:00:08]} 47. Re7 {[%emt 0:11:08]} (47. Re6 $142 {aiming for c6.} Kf7 48. Re7+ Kf6 49. Re1 (49. Rxh7 a4 $11)) 47... a4 $18 {[%emt 0:05:52]} 48. Ra7 {[%emt 0:02:00]} ({And not} 48. Rxh7 a3 49. Ra7 a2 50. Ra8+ Kf7 $11) 48... Ke8 {[%emt 0:00:06]} 49. Rxa4 {[%emt 0:00:15]} Rc2 {[%emt 0:00:21]} 50. Re4+ {[%emt 0:01:44]} Kd8 {[%emt 0:03:11]} 51. Re5 {[%emt 0:00:01]} h6 $2 {[%emt 0:03:03]} (51... h5 52. Kg1 h4) 52. h4 $18 {[%emt 0:00:16]} Kd7 {[%emt 0:02:04]} 53. Re7+ {[%emt 0:00:08]} Kd8 {[%emt 0:00:03]} 54. Re5 {[%emt 0:00:05]} Kd7 $1 {[%emt 0:00:03]} 55. Kg1 {[%emt 0:01:01]} Kc6 {[%emt 0:00:07]} 56. Rd5 {[%emt 0:00:27]} Kd7 {[%emt 0:00:12]} 57. Kf1 {[%emt 0:00:25]} Kd8 {[%emt 0:06:32]} 58. Ke1 {[%emt 0:00:42]} Rc4 {[%emt 0:00:17]} 59. Kd2 {[%emt 0:01:23]} Rxh4 $2 {[%emt 0:00:11]} (59... Kd7 60. Kd3 Rc1) 60. Kd3 {[%emt 0:00:22]} Rh1 {[%emt 0:00:15]} 61. Kc4 $2 {[%emt 0:00:34]} (61. Kc2 $18 Kd7 62. c6+ Kxc6 63. d7 Kxd5 64. d8=Q+ (64. d8=R+ $2 {too greedy.} Ke4 $19) 64... Ke5 65. Qe7+ Kf5 66. Qc5+ Kg4 67. Qd4+ Kg3 68. Qe3+ Kh2 69. Qxh6+ Kg2 70. Qxg6+ Kf2 71. Qf5+ Kg3 72. Qe5+ Kg2 73. Qe4+ Kg1 74. Kd1) 61... Rc1+ $1 $11 {[%emt 0:00:18]} 62. Kb5 {[%emt 0:00:06]} Kd7 {[%emt 0:00:05]} 63. Rd4 {[%emt 0:01:09]} (63. Re5 $5 Rb1+ $8 64. Kc4 Rc1+ 65. Kb4 Rb1+ 66. Kc4 Rc1+ 67. Kd3 $11) 63... h5 $2 {[%emt 0:00:35][%mdl 8192] [#]} (63... Rb1+ $11 64. Kc4 Rc1+ (64... Kc6 65. d7 Rc1+ 66. Kb3 Rb1+ 67. Kc3 Rb8 68. d8=Q Rxd8 69. Rxd8 Kxc5 70. Rh8) 65. Kd5 g5) 64. Re4 $2 {[%emt 0:00:30]} (64. Ra4 $1 $18 {[%cal Ra4a7] And now Ra7+ would win.} Rb1+ 65. Kc4 Rc1+ 66. Kd5 Rd1+ 67. Ke5) 64... Rb1+ $11 {[%emt 0:00:06]} 65. Kc4 {[%emt 0:00:12]} Kc6 {[%emt 0:01:01]} 66. Re8 {[%emt 0:00:45]} (66. Re7 $5 Rc1+ $8 67. Kd4 Rd1+ 68. Kc4 Rc1+ 69. Kd4 Rd1+ 70. Ke5 Kxc5 71. Rc7+ Kb6 72. Rc8 $11) 66... Rc1+ {[%emt 0:00:14]} 67. Kd4 {[%emt 0:00:12]} (67. Kb4 $5 Rb1+ $8 68. Ka4 $11) 67... Rd1+ {[%emt 0:00:04]} 68. Kc4 {[%emt 0:00:05]} Rc1+ {[%emt 0:00:04]} 69. Kb4 {[%emt 0:00:04]} Rb1+ {[%emt 0:00:08]} 70. Ka4 {[%emt 0:00:44]} (70. Kc4 $5 Rc1+ $8 $11) 70... Rb7 {[%emt 0:03:09]} 71. Rc8+ {[%emt 0:01:04]} Kd7 {[%emt 0:00:00]} 72. Rg8 {[%emt 0:00:17]} (72. Rh8 $5 Kc6 $8 73. Rc8+ Kd7 74. Rg8 $11) 72... Kc6 {[%emt 0:00:05]} 73. Rc8+ {[%emt 0:00:56]} Kd7 {[%emt 0:00:00]} 74. Rg8 {[%emt 0:00:27]} (74. Rh8 $5 Kc6 $8 75. Rc8+ $11) 74... Kc6 {[%emt 0:00:01]} 75. Rxg6 {[%emt 0:00:28]} Kxc5 {[%emt 0:00:07]} 76. Rg5+ {[%emt 0:00:05]} Kxd6 {[%emt 0:00:04]} 77. Rxh5 {[%emt 0:00:03]} 1/2-1/2